bitfinex-derivatives/quotes_SOLF0:USTF0_20240830
["timestamp","ask_amount","ask_price","bid_price","bid_amount"]
[1725050999569,3.6817,135.81,135.8,11.28]
[1725051000170,3.6817,135.81,135.79,3.73718801]
[1725051000376,3.6817,135.81,135.79,0.05508801]
[1725051001368,0.05239807,135.82,135.8,11.28]
[1725051001769,3.6807,135.85,135.82,3.6814]
[1725051001972,3.6807,135.85,135.84,11.28]
[1725051003467,0.05000453,135.86,135.84,11.28]
[1725051003777,0.05000453,135.86,135.85,11.28]
[1725051005386,0.05000453,135.86,135.85,14.9607]
[1725051008276,0.05000453,135.86,135.85,11.28]
[1725051010481,0.05000453,135.86,135.85,14.9607]
[1725051010883,1.3627,135.93,135.88,3.6798]
[1725051011084,1.3983,135.96,135.9,11.28]
[1725051011285,1.3983,135.96,135.91,11.28]
[1725051011581,3.6784,135.94,135.91,11.28]
[1725051011780,3.6784,135.94,135.93,11.28]
[1725051013178,3.6785,135.93,135.92,0.04782764]
[1725051013879,3.6784,135.94,135.92,0.04782764]
[1725051015184,0.05230316,135.95,135.92,0.04782764]
[1725051015185,3.6785,135.93,135.92,0.04782764]
[1725051015484,0.05230316,135.95,135.92,11.32782764]
[1725051015681,3.6766,136.01,135.92,0.04782764]
[1725051015882,1.4446,136.02,135.98,11.28]
[1725051016080,5.05400834,136.02,135.88,69.14904631]
[1725051016279,5.05400834,136.02,135.96,11.28]
[1725051016687,0.05443857,136.0,135.98,0.04821951]
[1725051017187,3.6769,135.99,135.98,0.04821951]
[1725051018875,3.6778,135.96,135.88,69.14904631]
[1725051019082,13.9939,135.99,135.92,11.28]
[1725051019894,3.678,135.95,135.88,69.14904631]
[1725051020087,3.678,135.95,135.91,11.28]
[1725051020283,0.05158946,135.93,135.91,11.28]
[1725051020789,0.05158946,135.93,135.91,14.959]
[1725051021289,0.05158946,135.93,135.91,11.28]
[1725051023885,0.05158946,135.93,135.9,11.33621523]
[1725051024084,0.05158946,135.93,135.9,15.01541523]
[1725051024587,3.73018946,135.93,135.9,11.33621523]
[1725051025094,3.6788,135.92,135.9,11.33621523]
[1725051028691,3.679,135.91,135.9,11.33621523]
[1725051028995,11.33158946,135.93,135.86,11.28]
[1725051029188,11.28,135.93,135.86,11.28]
[1725051029596,3.6795,135.9,135.86,14.9602]
[1725051029798,3.6795,135.9,135.87,11.28]
[1725051029996,3.73525232,135.9,135.87,11.33213568]
[1725051030188,3.73525232,135.9,135.87,15.01213568]
[1725051031994,3.6796,135.89,135.87,15.01213568]
[1725051035901,0.05575232,135.9,135.88,3.6799]
[1725051035902,3.73515232,135.9,135.88,3.6799]
[1725051041303,3.70054651,135.95,135.89,11.28]
[1725051041600,11.28,135.99,135.92,11.28]
[1725051042407,3.6783,135.94,135.92,11.28]
[1725051042604,3.6783,135.94,135.92,11.33165185]
[1725051043805,3.6783,135.94,135.92,15.01035185]
[1725051045105,3.6781,135.95,135.92,15.01035185]
[1725051046210,3.6781,135.95,135.93,3.6785]
[1725051047908,3.6781,135.95,135.92,0.05165185]
[1725051048152,0.05504274,135.97,135.92,3.73035185]
[1725051048315,11.33504274,135.97,135.92,0.05165185]
[1725051049409,3.6785,135.93,135.92,0.05165185]
[1725051049616,7.41544861,135.93,135.92,0.05165185]
[1725051049813,3.6785,135.93,135.92,0.05165185]
[1725051050314,7.28302401,135.93,135.92,0.05165185]
[1725051050916,3.6785,135.93,135.92,0.05165185]
[1725051051527,3.6785,135.93,135.92,11.33165185]
[1725051052513,3.72736424,135.94,135.92,11.33165185]
[1725051055956,3.72736424,135.94,135.92,15.01035185]
[1725051056333,0.04896424,135.94,135.93,14.9585]
[1725051056619,2.7256,136.0,135.93,14.9585]
[1725051056620,99.33352984,136.02,135.93,11.28]
[1725051056924,99.33352984,136.02,135.97,11.28]
[1725051057219,3.6771,135.98,135.97,11.28]
[1725051058420,3.72665335,135.99,135.97,11.28]
[1725051059618,3.6771,135.98,135.97,11.28]
[1725051061025,3.72675335,135.99,135.97,11.28]
[1725051063723,3.6771,135.98,135.97,11.28]
[1725051066231,3.72685335,135.99,135.97,11.28]
[1725051067720,3.72685335,135.99,135.97,14.9574]
[1725051068823,3.6771,135.98,135.97,11.28]
[1725051074429,0.04975335,135.99,135.96,11.33118606]
[1725051074430,3.6774,135.97,135.96,11.33118606]
[1725051074634,3.6774,135.97,135.96,0.05118606]
[1725051082353,3.6788,135.92,135.89,2.6785]
[1725051082657,3.6788,135.92,135.9,11.28]
[1725051083244,3.72539743,135.92,135.9,11.33428978]
[1725051085149,3.72539743,135.92,135.9,0.05428978]
[1725051085349,3.72539743,135.92,135.9,11.33428978]
[1725051085843,3.72539743,135.92,135.9,15.01358978]
[1725051087351,3.679,135.91,135.9,0.05428978]
[1725051092657,3.72549743,135.92,135.9,0.05428978]
[1725051096554,3.72549743,135.92,135.91,11.28]
[1725051105256,3.72549743,135.92,135.9,3.73358978]
[1725051108062,3.72549743,135.92,135.9,0.05428978]
[1725051108363,3.679,135.91,135.9,0.05428978]
[1725051116073,3.72549743,135.92,135.9,11.33428978]
[1725051116272,323.7241215,136.02,135.9,11.33428978]
[1725051116470,95.7241215,136.02,135.95,11.28]
[1725051117174,3.6774,135.98,135.95,11.28]
[1725051117379,3.72903918,135.98,135.95,11.33514307]
[1725051119076,3.72903918,135.98,135.95,15.01304307]
[1725051130587,0.05163918,135.98,135.95,0.05514307]
[1725051131186,3.72883918,135.98,135.95,0.05514307]
[1725051131384,0.05163918,135.98,135.96,11.28]
[1725051131585,0.05163918,135.98,135.96,14.9575]
[1725051132492,3.72883918,135.98,135.95,3.73294307]
[1725051132682,3.72883918,135.98,135.96,11.28]
[1725051133584,3.72883918,135.98,135.96,14.9576]
[1725051136191,0.05163918,135.98,135.96,14.9576]
[1725051136492,0.05163918,135.98,135.97,14.9574]
[1725051137595,95.7241215,136.02,135.98,3.677]
[1725051137799,3.6765,136.01,136.0,11.28]
[1725051137991,95.7241215,136.02,136.0,14.9566]
[1725051138292,3.6756,136.04,136.01,11.28]
[1725051138506,3.72928687,136.04,136.01,15.00343556]
[1725051140195,0.05368687,136.04,136.03,11.28]
[1725051141890,84.28026277,136.17,136.03,11.28]
[1725051142192,1.3431,136.15,136.1,11.28]
[1725051142393,3.673,136.14,136.12,11.28]
[1725051142793,0.04708811,136.14,136.12,11.28]
[1725051142998,0.04708811,136.14,136.12,11.32756601]
[1725051143798,3.71998811,136.14,136.12,11.32756601]
[1725051150602,0.04708811,136.14,136.13,11.28]
[1725051152411,0.04708811,136.14,136.12,3.72086601]
[1725051152617,0.04708811,136.14,136.12,15.00086601]
[1725051152915,0.04708811,136.14,136.12,11.32756601]
[1725051156612,0.04708811,136.14,136.12,15.00086601]
[1725051157611,0.04708811,136.14,136.13,11.28]
[1725051157823,0.04708811,136.14,136.13,14.9531]
[1725051162517,0.04708811,136.14,136.12,0.04756601]
[1725051162518,0.04708811,136.14,136.12,15.00076601]
[1725051165017,0.04708811,136.14,136.12,11.32756601]
[1725051168826,3.71988811,136.14,136.12,11.32756601]
[1725051170121,3.71988811,136.14,136.13,3.6731]
[1725051170122,0.04708811,136.14,136.13,3.6731]
[1725051173120,7.67070346,136.32,136.12,11.32756601]
[1725051173326,7.3392,136.27,136.2,11.28]
[1725051173629,11.09581827,136.27,136.2,11.28]
[1725051173825,3.6705,136.23,136.2,11.28]
[1725051174226,3.71750638,136.23,136.2,11.32757736]
[1725051174627,3.59355849,136.22,136.2,14.99867736]
[1725051175053,3.59355849,136.22,136.2,11.32757736]
[1725051176222,0.04700638,136.23,136.2,0.04757736]
[1725051176533,3.65550109,136.23,136.2,0.04757736]
[1725051176738,0.04700638,136.23,136.2,0.04757736]
[1725051176938,3.6709,136.21,136.2,0.04757736]
[1725051187640,3.6709,136.21,136.12,3.62587665]
[1725051187641,14.87638074,136.22,136.15,11.28]
[1725051187840,11.28,136.22,136.15,11.28]
[1725051188235,3.6719,136.18,136.14,3.6727]
[1725051188432,3.6719,136.18,136.16,11.28]
[1725051188640,3.72173613,136.18,136.16,11.32670969]
[1725051189139,3.672,136.17,136.16,11.32670969]
[1725051189339,3.672,136.17,136.16,0.04670969]
[1725051189676,0.04983613,136.18,136.12,11.28]
[1725051189837,11.28,136.21,136.14,11.28]
[1725051190348,3.6727,136.15,136.14,11.28]
[1725051191048,7.34174068,136.15,136.14,11.28]
[1725051194639,7.32612244,136.15,136.14,11.28]
[1725051195552,3.6727,136.15,136.14,11.28]
[1725051196351,7.41168354,136.15,136.14,11.28]
[1725051197847,7.41168354,136.15,136.13,0.04923088]
[1725051198051,3.6728,136.14,136.13,0.04923088]
[1725051204159,14.9528,136.14,136.13,0.04923088]
[1725051204763,3.6738,136.11,136.08,11.28]
[1725051205262,3.6738,136.11,136.08,14.9544]
[1725051205863,3.72993436,136.11,136.08,15.00754037]
[1725051206464,3.6741,136.1,136.08,11.33314037]
[1725051208061,3.6742,136.09,136.08,11.33314037]
[1725051209961,3.6742,136.09,136.08,0.05314037]
[1725051213774,3.6753,136.05,135.95,7.3556]
[1725051213970,3.6753,136.05,136.02,11.28]
[1725051214816,3.72655931,136.05,136.02,11.32894287]
[1725051214965,3.72655931,136.05,136.02,15.00494287]
[1725051215975,3.6756,136.04,136.02,15.00494287]
[1725051216569,3.6756,136.04,136.02,11.32894287]
[1725051217174,3.6756,136.04,136.03,11.28]
[1725051217379,3.72665931,136.05,136.03,11.28]
[1725051218178,3.72665931,136.05,136.03,14.9557]
[1725051218472,0.05125931,136.05,136.04,11.28]
[1725051218878,0.05125931,136.05,136.04,14.9555]
[1725051219471,2.779,136.12,136.06,3.675]
[1725051219677,3.6744,136.09,136.06,14.955]
[1725051220377,3.6744,136.09,136.06,15.00388849]
[1725051220584,3.72650974,136.09,136.06,15.00388849]
[1725051223468,0.05210974,136.09,136.08,11.28]
[1725051233588,0.05210974,136.09,136.08,14.9544]
[1725051240293,3.6735,136.12,136.1,3.6739]
[1725051240595,3.6735,136.12,136.1,14.9539]
[1725051241190,3.72855332,136.12,136.1,11.33113194]
[1725051242191,3.6736,136.11,136.1,0.05113194]
[1725051247900,0.05505332,136.12,136.1,11.33113194]
[1725051248297,3.6724,136.16,136.1,11.33113194]
[1725051248504,3.6724,136.16,136.14,11.28]
[1725051248897,14.0263,136.2,136.14,11.28]
[1725051248898,3.6721,136.17,136.14,11.28]
[1725051249099,3.66162543,136.22,136.16,11.28]
[1725051249403,0.05278144,136.2,136.19,11.28]
[1725051249606,0.05330773,136.21,136.19,11.28]
[1725051250197,0.05330773,136.21,136.19,14.9513]
[1725051253803,0.05330773,136.21,136.19,11.28]
[1725051254008,0.05330773,136.21,136.18,15.00225573]
[1725051254809,3.72440773,136.21,136.18,15.00225573]
[1725051258603,0.05330773,136.21,136.2,11.28]
[1725051260305,0.05330773,136.21,136.2,14.9512]
[1725051263306,3.6705,136.23,136.2,3.6712]
[1725051263507,3.6705,136.23,136.22,11.28]
[1725051264121,3.6699,136.25,136.22,14.9506]
[1725051264415,3.7166754,136.25,136.24,11.28]
[1725051265313,3.7166754,136.25,136.23,11.28]
[1725051268713,3.6701,136.24,136.23,11.28]
[1725051269119,3.7167754,136.25,136.23,11.28]
[1725051270712,0.0467754,136.25,136.23,14.9503]
[1725051273627,3.7166754,136.25,136.23,14.9503]
[1725051275217,3.7166754,136.25,136.23,11.28]
[1725051277327,3.6701,136.24,136.22,0.05594104]
[1725051277520,0.0467754,136.25,136.22,0.05594104]
[1725051277924,3.6704,136.23,136.22,0.05594104]
[1725051289835,5.0884,136.23,136.22,0.05594104]
[1725051293432,12.698,136.23,136.16,11.28]
[1725051294235,1.418,136.23,136.19,11.28]
[1725051294537,0.05258315,136.22,136.2,0.05134681]
[1725051294742,3.72338315,136.22,136.2,0.05134681]
[1725051295530,3.6709,136.21,136.2,0.05134681]
[1725051296128,7.3935597,136.21,136.2,0.05134681]
[1725051296842,3.6709,136.21,136.2,0.05134681]
[1725051297237,7.31426826,136.21,136.2,0.05134681]
[1725051302051,3.6709,136.21,136.2,0.05134681]
[1725051302260,0.05258315,136.22,136.2,11.33134681]
[1725051302855,0.05258315,136.22,136.21,3.6709]
[1725051304060,0.05258315,136.22,136.2,15.00244681]
[1725051304455,3.72328315,136.22,136.2,15.00244681]
[1725051305654,3.72328315,136.22,136.2,11.33134681]
[1725051308062,3.72328315,136.22,136.2,15.00254681]
[1725051309253,3.6709,136.21,136.2,11.33134681]
[1725051310568,3.72338315,136.22,136.2,15.00254681]
[1725051318571,0.05258315,136.22,136.21,3.6709]
[1725051318768,0.05258315,136.22,136.2,11.33134681]
[1725051319570,0.05258315,136.22,136.2,15.00234681]
[1725051319969,3.72328315,136.22,136.2,15.00234681]
[1725051324178,3.6709,136.21,136.2,0.05134681]
[1725051324380,7.30089119,136.21,136.2,0.05134681]
[1725051332781,7.30089119,136.21,136.17,11.28]
[1725051332782,11.28,136.21,136.13,11.28]
[1725051333082,11.28,136.19,136.13,11.28]
[1725051333777,3.6723,136.16,136.15,0.05201241]
[1725051335782,3.72796036,136.17,136.15,0.05201241]
[1725051336585,3.6723,136.16,136.15,0.05201241]
[1725051345494,0.05586036,136.17,136.15,11.33201241]
[1725051346193,0.05586036,136.17,136.16,3.6723]
[1725051347241,3.6711,136.21,136.18,3.6716]
[1725051347396,3.6711,136.21,136.18,14.9516]
[1725051348195,3.70483254,136.22,136.18,14.9516]
[1725051348395,0.05042734,136.21,136.18,14.99861366]
[1725051348593,7.31079745,136.2,136.18,11.32701366]
[1725051348890,7.31079745,136.2,136.18,0.04701366]
[1725051349796,3.63959745,136.2,136.18,0.04701366]
[1725051349995,3.72142734,136.21,136.18,14.99871366]
[1725051350597,7.35101199,136.21,136.18,14.99871366]
[1725051351798,7.35101199,136.21,136.18,11.32701366]
[1725051353294,7.35101199,136.21,136.18,0.04701366]
[1725051358600,3.6713,136.2,136.18,0.04701366]
[1725051360901,3.6715,136.19,136.18,0.04701366]
[1725051361106,0.05042734,136.21,136.18,11.32701366]
[1725051361409,0.05042734,136.21,136.2,11.28]
[1725051362002,3.72152734,136.21,136.2,11.28]
[1725051365307,0.05042734,136.21,136.2,11.28]
[1725051366509,18.6174,136.3,136.2,11.28]
[1725051366711,19.962,136.3,136.23,11.28]
[1725051367006,3.6697,136.26,136.23,11.28]
[1725051367411,3.71682436,136.26,136.23,11.33106853]
[1725051367607,3.71682436,136.26,136.23,15.00126853]
[1725051367814,3.6699,136.25,136.23,11.33106853]
[1725051371404,0.04712436,136.26,136.23,11.33106853]
[1725051371615,3.6701,136.24,136.23,0.05106853]
[1725051372113,11.28,136.24,136.02,11.0276]
[1725051372311,11.28,136.21,136.13,11.28]
[1725051372609,11.28,136.21,136.14,3.6727]
[1725051373009,0.04751058,136.19,136.16,0.04829847]
[1725051373409,3.672,136.17,136.16,0.04829847]
[1725051374118,3.672,136.17,136.03,7.3515]
[1725051374119,3.6729,136.14,136.08,3.71135913]
[1725051374317,3.6729,136.14,136.1,11.28]
[1725051375012,3.6729,136.14,136.1,14.9538]
[1725051375210,0.05036806,136.13,136.11,0.04748011]
[1725051375806,0.05036806,136.13,136.11,11.32748011]
[1725051376017,0.05036806,136.13,136.11,0.04748011]
[1725051376408,3.72346806,136.13,136.11,0.04748011]
[1725051379613,3.6734,136.12,136.11,0.04748011]
[1725051384814,3.6743,136.09,136.04,94.70418716]
[1725051385211,3.6743,136.09,136.05,3.6751]
[1725051385616,3.6745,136.08,136.05,3.6751]
[1725051385824,3.72855546,136.08,136.05,3.72269316]
[1725051386343,0.05405546,136.08,136.06,3.6748]
[1725051388322,3.72855546,136.08,136.06,3.6748]
[1725051388720,3.72855546,136.08,136.05,3.72259316]
[1725051390823,3.6748,136.07,136.05,3.72259316]
[1725051392225,3.72865546,136.08,136.05,7.45625083]
[1725051392428,3.72865546,136.08,136.05,7.34098449]
[1725051392615,3.72865546,136.08,136.05,3.72259316]
[1725051395426,3.72865546,136.08,136.06,3.675]
[1725051411142,0.05405546,136.08,136.05,0.04759316]
[1725051411942,3.675,136.06,136.05,0.04759316]
[1725051417738,0.05405546,136.08,136.05,0.04759316]
[1725051418154,0.05405546,136.08,136.07,11.28]
[1725051418676,3.6736,136.12,136.07,14.94936076]
[1725051418837,3.6736,136.12,136.08,11.28]
[1725051419143,1.4002,136.16,136.08,11.28]
[1725051419333,12.6802,136.16,136.1,11.28]
[1725051419741,3.72958584,136.14,136.12,0.05316496]
[1725051423643,0.05658584,136.14,136.12,3.72646496]
[1725051427152,3.72948584,136.14,136.12,0.05316496]
[1725051430049,3.6731,136.13,136.12,0.05316496]
[1725051433350,14.97595084,136.14,136.08,3.6744]
[1725051433559,11.28,136.11,136.08,3.6744]
[1725051434149,14.9538,136.11,136.08,3.6744]
[1725051434457,18.65492834,136.11,136.08,3.72708966]
[1725051435373,3.6739,136.1,136.08,0.05268966]
[1725051438561,3.6742,136.09,136.08,0.05268966]
[1725051438760,14.9542,136.09,136.08,0.05268966]
[1725051444359,3.70112834,136.11,136.08,0.05268966]
[1725051444360,0.05398142,136.11,136.08,0.05268966]
[1725051444859,3.72778142,136.11,136.08,0.05268966]
[1725051445458,3.72778142,136.11,136.08,3.72698966]
[1725051449363,3.72778142,136.11,136.09,3.6741]
[1725051453358,0.05398142,136.11,136.1,3.6739]
[1725051454061,228.0,136.23,136.1,11.28]
[1725051454270,3.6713,136.2,136.15,11.28]
[1725051454461,3.6713,136.2,136.15,15.03662011]
[1725051454663,3.6713,136.2,136.16,3.6721]
[1725051454967,0.05464122,136.19,136.17,0.05417855]
[1725051458271,0.05464122,136.19,136.17,3.72607855]
[1725051459566,0.05464122,136.19,136.18,14.9517]
[1725051459965,3.60535315,136.25,136.18,11.28]
[1725051460262,7.27545315,136.25,136.19,11.28]
[1725051460866,3.6703,136.24,136.18,11.28]
[1725051461070,0.05123841,136.22,136.2,0.0544657]
[1725051461573,0.05123841,136.22,136.21,3.6709]
[1725051465666,0.05123841,136.22,136.2,0.0544657]
[1725051466763,0.05123841,136.22,136.2,3.7255657]
[1725051468274,0.05123841,136.22,136.2,0.0544657]
[1725051468975,0.05123841,136.22,136.2,11.3344657]
[1725051469979,0.05123841,136.22,136.21,3.6709]
[1725051474876,0.05123841,136.22,136.2,3.7255657]
[1725051476680,3.72193841,136.22,136.2,3.7255657]
[1725051477879,0.05123841,136.22,136.2,0.0544657]
[1725051478280,3.72203841,136.22,136.2,3.7256657]
[1725051478500,0.05123841,136.22,136.2,3.7256657]
[1725051481279,0.05123841,136.22,136.21,3.6709]
[1725051481584,0.05123841,136.22,136.2,0.0544657]
[1725051481882,0.05123841,136.22,136.2,3.7254657]
[1725051484281,3.72193841,136.22,136.2,3.7254657]
[1725051485181,3.72193841,136.22,136.2,0.0544657]
[1725051485383,3.6709,136.21,136.2,0.0544657]
[1725051487293,3.6715,136.19,136.06,49.1774]
[1725051487593,1.324,136.21,136.16,14.9522]
[1725051487796,3.6716,136.19,136.16,14.9522]
[1725051487990,3.6716,136.19,136.17,11.28]
[1725051488192,3.72084434,136.19,136.17,11.3304886]
[1725051488588,3.72084434,136.19,136.17,15.0023886]
[1725051489691,3.72084434,136.19,136.17,11.3304886]
[1725051492791,0.04924434,136.19,136.17,15.0024886]
[1725051494287,3.72074434,136.19,136.17,11.3304886]
[1725051494692,3.6717,136.18,136.17,11.3304886]
[1725051494898,3.6717,136.18,136.17,0.0504886]
[1725051495793,3.72084434,136.19,136.17,0.0504886]
[1725051498095,3.72084434,136.19,136.17,3.7223886]
[1725051498341,0.04924434,136.19,136.17,11.3304886]
[1725051499292,0.04924434,136.19,136.18,3.6717]
[1725051500446,2.7226,136.25,136.21,3.6708]
[1725051500602,1.384,136.28,136.2,14.97879606]
[1725051500899,2.6995,136.28,136.23,14.9504]
[1725051501096,3.59602114,136.27,136.23,14.9504]
[1725051501495,3.71875369,136.26,136.24,0.04849229]
[1725051503193,0.04895369,136.26,136.24,11.32849229]
[1725051503506,0.04895369,136.26,136.25,11.28]
[1725051503699,0.04895369,136.26,136.25,14.9499]
[1725051513698,0.04895369,136.26,136.25,3.6699]
[1725051514502,0.04895369,136.26,136.24,11.32849229]
[1725051514503,0.04895369,136.26,136.24,14.99849229]
[1725051515000,0.04895369,136.26,136.25,14.9499]
[1725051515199,1.4066,136.31,136.25,11.28]
[1725051515401,2.7566,136.32,136.27,11.28]
[1725051515798,3.6687,136.3,136.27,14.9492]
[1725051516304,3.72175021,136.3,136.27,15.00486112]
[1725051517146,3.72175021,136.3,136.28,3.669]
[1725051517316,0.05305021,136.3,136.28,3.669]
[1725051518906,3.72155021,136.3,136.28,3.669]
[1725051519403,3.72155021,136.3,136.27,15.00486112]
[1725051522204,3.72155021,136.3,136.28,3.669]
[1725051522811,0.05305021,136.3,136.29,3.6688]
[1725051523112,0.05305021,136.3,136.29,14.9488]
[1725051523903,0.05305021,136.3,136.29,3.6688]
[1725051525011,0.05305021,136.3,136.28,14.9489]
[1725051525212,0.05305021,136.3,136.28,3.6689]
[1725051527007,0.05305021,136.3,136.27,0.05566112]
[1725051527411,1.41465021,136.3,136.27,0.05566112]
[1725051527655,3.6689,136.29,136.27,0.05566112]
[1725051528015,3.6691,136.28,136.27,0.05566112]
[1725051530604,1.41465021,136.3,136.27,0.05566112]
[1725051530811,3.6689,136.29,136.27,0.05566112]
[1725051531011,1.41465021,136.3,136.27,11.33566112]
[1725051531516,5.08325021,136.3,136.27,15.00486112]
[1725051533616,0.05305021,136.3,136.28,3.669]
[1725051533961,0.05305021,136.3,136.28,14.949]
[1725051534713,0.05305021,136.3,136.27,0.05566112]
[1725051536117,3.6689,136.29,136.27,0.05566112]
[1725051538722,3.6691,136.28,136.27,0.05566112]
[1725051545634,0.05305021,136.3,136.27,3.69725781]
[1725051545819,0.05305021,136.3,136.29,11.28]
[1725051547321,0.05305021,136.3,136.29,14.9488]
[1725051548932,4.1932,136.37,136.29,11.28]
[1725051549130,4.1932,136.37,136.31,11.28]
[1725051549322,3.6673,136.35,136.31,11.28]
[1725051549523,3.6673,136.35,136.32,3.6679]
[1725051550130,3.71455896,136.35,136.32,3.72035468]
[1725051551022,0.04725896,136.35,136.32,3.72035468]
[1725051551326,228.0,136.43,136.34,11.28]
[1725051551524,11.28,136.43,136.36,11.28]
[1725051551728,11.28,136.43,136.36,14.9467]
[1725051551920,3.6656,136.41,136.36,14.9467]
[1725051552123,4.0839,136.46,136.36,11.28]
[1725051552331,0.05655222,136.42,136.4,0.05189632]
[1725051552629,3.6656,136.41,136.4,0.05189632]
[1725051552829,5.0464,136.41,136.4,0.05189632]
[1725051553030,16.3264,136.41,136.4,0.05189632]
[1725051555527,3.6665,136.38,136.35,3.6671]
[1725051555729,7.34135337,136.38,136.35,3.6671]
[1725051556133,7.34135337,136.38,136.34,3.6673]
[1725051556335,7.34135337,136.38,136.33,11.28]
[1725051556336,3.6667,136.37,136.33,11.28]
[1725051556533,0.04783969,136.36,136.34,0.05095044]
[1725051556733,0.04783969,136.36,136.34,3.71835044]
[1725051557634,3.71473969,136.36,136.34,0.05095044]
[1725051558237,0.04783969,136.36,136.34,3.71835044]
[1725051558846,3.71473969,136.36,136.34,0.05095044]
[1725051559442,3.6672,136.35,136.34,0.05095044]
[1725051561140,0.04783969,136.36,136.34,0.05095044]
[1725051561746,0.04783969,136.36,136.34,3.71835044]
[1725051563239,0.04783969,136.36,136.35,3.6672]
[1725051565451,0.04783969,136.36,136.34,3.71825044]
[1725051566054,0.04783969,136.36,136.35,3.6672]
[1725051566553,0.04783969,136.36,136.35,14.9472]
[1725051570259,0.04783969,136.36,136.34,3.71835044]
[1725051570552,0.04783969,136.36,136.34,11.33095044]
[1725051570757,0.04783969,136.36,136.34,14.99815044]
[1725051571848,3.71473969,136.36,136.34,11.33095044]
[1725051572249,3.71473969,136.36,136.34,0.05095044]
[1725051572858,3.71483969,136.36,136.34,0.05095044]
[1725051573267,0.04783969,136.36,136.34,0.05095044]
[1725051573769,3.6672,136.35,136.34,0.05095044]
[1725051574768,0.04783969,136.36,136.34,0.05095044]
[1725051574958,0.04783969,136.36,136.34,11.33095044]
[1725051575564,0.04783969,136.36,136.34,14.99825044]
[1725051576471,0.04783969,136.36,136.35,3.6672]
[1725051576675,0.04783969,136.36,136.34,11.33095044]
[1725051576676,4.1619,136.41,136.36,11.28]
[1725051577062,3.666,136.4,136.37,3.6666]
[1725051577466,4.1619,136.41,136.36,11.28]
[1725051577665,3.72035517,136.39,136.37,0.0533709]
[1725051580675,3.6664,136.38,136.37,0.0533709]
[1725051582077,3.72035517,136.39,136.37,0.0533709]
[1725051583176,0.05415517,136.39,136.37,0.0533709]
[1725051583980,3.72035517,136.39,136.37,0.0533709]
[1725051586671,3.6664,136.38,136.37,0.0533709]
[1725051589173,7.29576392,136.39,136.37,3.7199709]
[1725051592089,3.6664,136.38,136.37,0.0533709]
[1725051595873,3.62956392,136.39,136.37,0.0533709]
[1725051596070,3.62956392,136.39,136.37,11.3333709]
[1725051596581,3.62956392,136.39,136.37,14.9999709]
[1725051596582,7.29576392,136.39,136.37,14.9999709]
[1725051597781,3.72035517,136.39,136.37,14.9999709]
[1725051597980,0.05415517,136.39,136.37,14.9999709]
[1725051598178,3.75814776,136.39,136.37,14.9999709]
[1725051598875,0.05415517,136.39,136.37,14.9999709]
[1725051599182,0.05415517,136.39,136.38,3.6664]
[1725051599480,0.05415517,136.39,136.37,11.3333709]
[1725051600075,0.05415517,136.39,136.38,3.6664]
[1725051601473,0.05415517,136.39,136.38,14.9464]
[1725051603290,1.3439,136.45,136.38,11.28]
[1725051603477,3.6644,136.46,136.44,11.28]
[1725051603784,3.61593724,136.47,136.44,14.9446]
[1725051603981,1.4242,136.48,136.44,11.28]
[1725051604282,0.04955248,136.47,136.45,3.71454374]
[1725051604589,3.6642,136.46,136.45,0.05014374]
[1725051607678,3.6652,136.43,136.4,3.6657]
[1725051608085,1.313,136.45,136.39,14.946]
[1725051608472,1.313,136.45,136.39,11.28]
[1725051608677,0.05160193,136.43,136.41,0.0469156]
[1725051609083,3.6653,136.42,136.41,0.0469156]
[1725051612487,3.6666,136.37,136.36,3.69474668]
[1725051612683,3.6666,136.37,136.35,11.28]
[1725051612884,11.28,136.42,136.35,11.28]
[1725051613175,3.6664,136.38,136.35,14.9471]
[1725051613382,14.92012645,136.42,136.35,14.9471]
[1725051613585,3.6664,136.38,136.37,0.04704362]
[1725051619481,11.28,136.38,136.3,1.416]
[1725051619684,11.28,136.38,136.31,11.28]
[1725051619981,11.28,136.38,136.3,1.416]
[1725051619982,11.28,136.33,136.21,5.81178083]
[1725051620187,11.28,136.31,136.25,11.28]
[1725051620482,3.72001561,136.29,136.27,0.05640138]